[Event "*** Titled Tuesday Blitz"]
[Site "Chess.com"]
[Date "2020.05.26"]
[Round "1"]
[White "Arjun2002"]
[Black "Falia-p"]
[Result "1-0"]
[WhiteElo "2663"]
[BlackElo "2307"]
[TimeControl "180+1"]
[EndTime "10:08:31 PDT"]
[Termination "Arjun2002 won on time"]

1. e4 {[%clk 0:02:58.4]} 1... c6 {[%clk 0:02:59.5]} 2. Nf3 {[%clk 0:02:55]} 2...
d5 {[%clk 0:03:00.4]} 3. Nc3 {[%clk 0:02:54.6]} 3... Bg4 {[%clk 0:03:00]} 4. h3
{[%clk 0:02:54.5]} 4... Bxf3 {[%clk 0:02:59.7]} 5. Qxf3 {[%clk 0:02:55.4]} 5...
e6 {[%clk 0:03:00.1]} 6. d3 {[%clk 0:02:55.1]} 6... Nd7 {[%clk 0:02:56.5]} 7.
Bd2 {[%clk 0:02:55.2]} 7... Qb6 {[%clk 0:02:56.4]} 8. O-O-O {[%clk 0:02:54.5]}
8... Bd6 {[%clk 0:02:55.3]} 9. g4 {[%clk 0:02:47.1]} 9... Ne7 {[%clk 0:02:55]}
10. h4 {[%clk 0:02:46.2]} 10... d4 {[%clk 0:02:52]} 11. Ne2 {[%clk 0:02:45.1]}
11... e5 {[%clk 0:02:52.2]} 12. g5 {[%clk 0:02:42.7]} 12... Bb4 {[%clk
0:02:51.3]} 13. h5 {[%clk 0:02:36.1]} 13... Bxd2+ {[%clk 0:02:47.6]} 14. Rxd2
{[%clk 0:02:36.2]} 14... Rf8 {[%clk 0:02:38.9]} 15. Bh3 {[%clk 0:02:28.4]} 15...
O-O-O {[%clk 0:02:36.9]} 16. Qg3 {[%clk 0:02:26.2]} 16... Qa5 {[%clk 0:02:30.3]}
17. a3 {[%clk 0:02:23.8]} 17... Kb8 {[%clk 0:02:12.4]} 18. Nxd4 {[%clk
0:02:20.6]} 18... Ka8 {[%clk 0:02:02.9]} 19. Nb3 {[%clk 0:02:15.9]} 19... Qb5
{[%clk 0:01:59.5]} 20. d4 {[%clk 0:01:50.5]} 20... f6 {[%clk 0:01:42.6]} 21.
Rhd1 {[%clk 0:01:44.2]} 21... Nb6 {[%clk 0:01:31.5]} 22. Bf1 {[%clk 0:01:42.2]}
22... Qa4 {[%clk 0:01:25.5]} 23. dxe5 {[%clk 0:01:32.6]} 23... Rxd2 {[%clk
0:01:23.5]} 24. Rxd2 {[%clk 0:01:32.8]} 24... Qxe4 {[%clk 0:01:21.8]} 25. exf6
{[%clk 0:01:27.8]} 25... gxf6 {[%clk 0:01:21]} 26. Re2 {[%clk 0:01:24.3]} 26...
Qh1 {[%clk 0:01:08.2]} 27. Qg2 {[%clk 0:00:58.3]} 27... Qxg2 {[%clk 0:01:06.7]}
28. Bxg2 {[%clk 0:00:59.2]} 28... Ned5 {[%clk 0:01:04]} 29. Bxd5 {[%clk
0:00:36.6]} 29... Nxd5 {[%clk 0:01:04.9]} 30. gxf6 {[%clk 0:00:33.4]} 30... Nxf6
{[%clk 0:01:04.5]} 31. h6 {[%clk 0:00:33.3]} 31... Ng4 {[%clk 0:01:03.9]} 32.
Re6 {[%clk 0:00:32.1]} 32... Nxf2 {[%clk 0:00:58.8]} 33. Re7 {[%clk 0:00:30.6]}
33... Rh8 {[%clk 0:00:46]} 34. Nc5 {[%clk 0:00:30.1]} 34... b6 {[%clk
0:00:45.5]} 35. Ne6 {[%clk 0:00:28.8]} 35... Ng4 {[%clk 0:00:42.1]} 36. Nd4
{[%clk 0:00:25.8]} 36... Kb8 {[%clk 0:00:19.8]} 37. Nxc6+ {[%clk 0:00:25.7]}
37... Kc8 {[%clk 0:00:20.1]} 38. Nxa7+ {[%clk 0:00:25.8]} 38... Kd8 {[%clk
0:00:20.4]} 39. Nc6+ {[%clk 0:00:26.2]} 39... Kc8 {[%clk 0:00:20.9]} 40. Ra7
{[%clk 0:00:26.1]} 40... Re8 {[%clk 0:00:16.9]} 41. Rxh7 {[%clk 0:00:25.9]}
41... Re6 {[%clk 0:00:12]} 42. Rh8+ {[%clk 0:00:17.9]} 42... Kc7 {[%clk
0:00:11.8]} 43. h7 {[%clk 0:00:18.3]} 43... Rh6 {[%clk 0:00:07.8]} 44. Rg8
{[%clk 0:00:15.8]} 44... Rxh7 {[%clk 0:00:03.8]} 45. Rxg4 {[%clk 0:00:15.9]}
45... Kxc6 {[%clk 0:00:04.3]} 46. b4 {[%clk 0:00:16]} 46... Rh3 {[%clk
0:00:04.2]} 47. Kb2 {[%clk 0:00:16.2]} 47... b5 {[%clk 0:00:05.1]} 48. Rd4
{[%clk 0:00:16.1]} 48... Rg3 {[%clk 0:00:04.9]} 49. Rd3 {[%clk 0:00:16.4]} 49...
Rg4 {[%clk 0:00:04.5]} 50. Kb3 {[%clk 0:00:16.8]} 50... Rc4 {[%clk 0:00:04.2]}
51. a4 {[%clk 0:00:14.3]} 51... Rg4 {[%clk 0:00:03.4]} 52. axb5+ {[%clk
0:00:14.4]} 52... Kxb5 {[%clk 0:00:03.9]} 53. Rd5+ {[%clk 0:00:14.8]} 53... Kc6
{[%clk 0:00:04.3]} 54. Rh5 {[%clk 0:00:15.3]} 54... Rf4 {[%clk 0:00:04.3]} 55.
Rh6+ {[%clk 0:00:14.8]} 55... Kb5 {[%clk 0:00:04.2]} 56. c3 {[%clk 0:00:14.3]}
56... Rf3 {[%clk 0:00:02.4]} 57. Rh5+ {[%clk 0:00:14.1]} 57... Kb6 {[%clk
0:00:01.5]} 58. Rd5 {[%clk 0:00:10.3]} 58... Kc6 {[%clk 0:00:00.9]} 59. Rd4
{[%clk 0:00:10.5]} 1-0

[Event "*** Titled Tuesday Blitz"]
[Site "Chess.com"]
[Date "2020.05.26"]
[Round "1"]
[White "LiamVrolijk"]
[Black "WhiteCapital80"]
[Result "1-0"]
[WhiteElo "2785"]
[BlackElo "2401"]
[TimeControl "180+1"]
[EndTime "10:08:36 PDT"]
[Termination "LiamVrolijk won by checkmate"]

1. d4 {[%clk 0:03:00.9]} 1... e6 {[%clk 0:02:58.5]} 2. Nf3 {[%clk 0:03:00.5]}
2... Nf6 {[%clk 0:02:58.3]} 3. c4 {[%clk 0:03:00.5]} 3... d5 {[%clk 0:02:58.2]}
4. g3 {[%clk 0:03:00.4]} 4... Be7 {[%clk 0:02:58.4]} 5. Bg2 {[%clk 0:03:00.6]}
5... O-O {[%clk 0:02:59]} 6. Nc3 {[%clk 0:03:00.8]} 6... dxc4 {[%clk 0:02:56.9]}
7. Ne5 {[%clk 0:03:00.7]} 7... Nc6 {[%clk 0:02:56.2]} 8. Bxc6 {[%clk 0:03:00.4]}
8... bxc6 {[%clk 0:02:56.3]} 9. Nxc6 {[%clk 0:03:01.3]} 9... Qe8 {[%clk
0:02:56.4]} 10. Nxe7+ {[%clk 0:03:01.6]} 10... Qxe7 {[%clk 0:02:56.7]} 11. Qa4
{[%clk 0:03:01.8]} 11... c5 {[%clk 0:02:53.3]} 12. dxc5 {[%clk 0:03:01.6]} 12...
Qxc5 {[%clk 0:02:52.4]} 13. Be3 {[%clk 0:03:01.3]} 13... Qf5 {[%clk 0:02:44.9]}
14. f3 {[%clk 0:02:44.9]} 14... Nd5 {[%clk 0:02:39.2]} 15. Nxd5 {[%clk
0:02:43.1]} 15... exd5 {[%clk 0:02:35.1]} 16. Rd1 {[%clk 0:02:28.2]} 16... Qe5
{[%clk 0:02:29.9]} 17. Bd4 {[%clk 0:02:26.2]} 17... Qe7 {[%clk 0:02:18.5]} 18.
Kf2 {[%clk 0:02:23.6]} 18... Re8 {[%clk 0:02:16.4]} 19. Rde1 {[%clk 0:02:21]}
19... Bf5 {[%clk 0:02:08.6]} 20. h4 {[%clk 0:02:14]} 20... h5 {[%clk 0:02:07.7]}
21. Qa5 {[%clk 0:02:11.3]} 21... Qb7 {[%clk 0:02:03.7]} 22. Qc3 {[%clk
0:02:09.9]} 22... f6 {[%clk 0:02:02.2]} 23. Rd1 {[%clk 0:02:07.6]} 23... Re7
{[%clk 0:01:59.3]} 24. Rd2 {[%clk 0:02:07.9]} 24... Rae8 {[%clk 0:01:58.3]} 25.
Bc5 {[%clk 0:02:03.7]} 25... Re6 {[%clk 0:01:54.6]} 26. Qd4 {[%clk 0:01:59.9]}
26... Kh7 {[%clk 0:01:49]} 27. Re1 {[%clk 0:01:58.5]} 27... Bd3 {[%clk
0:01:46.8]} 28. Bxa7 {[%clk 0:01:39.6]} 28... Re5 {[%clk 0:01:28.3]} 29. Bc5
{[%clk 0:01:36.4]} 29... Qd7 {[%clk 0:01:26.2]} 30. Rxd3 {[%clk 0:01:13.5]}
30... cxd3 {[%clk 0:01:25.7]} 31. Qxd3+ {[%clk 0:01:14.4]} 31... Kh8 {[%clk
0:01:24.2]} 32. Bd4 {[%clk 0:01:14.2]} 32... R5e7 {[%clk 0:01:17.4]} 33. Kg2
{[%clk 0:01:13.5]} 33... Qa4 {[%clk 0:01:10.3]} 34. a3 {[%clk 0:01:08.1]} 34...
Rc8 {[%clk 0:01:08.5]} 35. Bc3 {[%clk 0:01:04.9]} 35... Qc4 {[%clk 0:01:03.9]}
36. Qd2 {[%clk 0:00:39.5]} 36... d4 {[%clk 0:00:54.3]} 37. Bxd4 {[%clk
0:00:35.9]} 37... Qb3 {[%clk 0:00:37.8]} 38. Bc3 {[%clk 0:00:33.4]} 38... Rce8
{[%clk 0:00:37.6]} 39. Kf2 {[%clk 0:00:32.6]} 39... Qb7 {[%clk 0:00:35.4]} 40.
Qd3 {[%clk 0:00:30.2]} 40... Qc8 {[%clk 0:00:35]} 41. Kg2 {[%clk 0:00:29.4]}
41... Re6 {[%clk 0:00:33.3]} 42. Qb5 {[%clk 0:00:28]} 42... Kg8 {[%clk
0:00:28.3]} 43. a4 {[%clk 0:00:27.5]} 43... Rd8 {[%clk 0:00:19.7]} 44. Qxh5
{[%clk 0:00:25.8]} 44... Qc4 {[%clk 0:00:18.6]} 45. Qb5 {[%clk 0:00:24.6]} 45...
Qxb5 {[%clk 0:00:18.2]} 46. axb5 {[%clk 0:00:25.5]} 46... Rb8 {[%clk 0:00:18.6]}
47. g4 {[%clk 0:00:24]} 47... Rxb5 {[%clk 0:00:18.9]} 48. h5 {[%clk 0:00:23.2]}
48... g6 {[%clk 0:00:18.5]} 49. hxg6 {[%clk 0:00:23]} 49... Kg7 {[%clk
0:00:18.9]} 50. Kf2 {[%clk 0:00:23.3]} 50... Kxg6 {[%clk 0:00:19.3]} 51. Rd1
{[%clk 0:00:23.2]} 51... Rbb6 {[%clk 0:00:18.6]} 52. Rd5 {[%clk 0:00:20.6]}
52... Red6 {[%clk 0:00:18.8]} 53. Rf5 {[%clk 0:00:20.8]} 53... Rb3 {[%clk
0:00:17.6]} 54. e4 {[%clk 0:00:20.4]} 54... Rc6 {[%clk 0:00:17.5]} 55. Kg3
{[%clk 0:00:20.2]} 55... Rcb6 {[%clk 0:00:17.4]} 56. Rd5 {[%clk 0:00:19.7]}
56... R3b5 {[%clk 0:00:17.5]} 57. Rd3 {[%clk 0:00:18.4]} 57... Rb3 {[%clk
0:00:17.6]} 58. Kf4 {[%clk 0:00:18.4]} 58... R3b5 {[%clk 0:00:17.5]} 59. Rd1
{[%clk 0:00:18.2]} 59... Rb3 {[%clk 0:00:16]} 60. Rd8 {[%clk 0:00:18.7]} 60...
Rc6 {[%clk 0:00:15.5]} 61. Rg8+ {[%clk 0:00:17.7]} 61... Kf7 {[%clk 0:00:15.4]}
62. Rd8 {[%clk 0:00:17.8]} 62... Kg6 {[%clk 0:00:15.5]} 63. Rd2 {[%clk
0:00:18.2]} 63... Rb5 {[%clk 0:00:15.5]} 64. Rg2 {[%clk 0:00:18.5]} 64... Rbc5
{[%clk 0:00:14.7]} 65. Ke3 {[%clk 0:00:18.3]} 65... Rc4 {[%clk 0:00:14.9]} 66.
Rd2 {[%clk 0:00:18.3]} 66... R4c5 {[%clk 0:00:14.5]} 67. Rd4 {[%clk 0:00:18.2]}
67... Rb5 {[%clk 0:00:14.6]} 68. Rd7 {[%clk 0:00:17.4]} 68... Re6 {[%clk
0:00:14.6]} 69. f4 {[%clk 0:00:15.9]} 69... Rc6 {[%clk 0:00:14.5]} 70. f5+
{[%clk 0:00:16.2]} 70... Kg5 {[%clk 0:00:14.7]} 71. Rg7+ {[%clk 0:00:16.2]}
71... Kh4 {[%clk 0:00:15]} 72. Kf4 {[%clk 0:00:15.7]} 72... Rc4 {[%clk
0:00:13.6]} 73. Rh7# {[%clk 0:00:15.7]} 1-0

[Event "*** Titled Tuesday Blitz"]
[Site "Chess.com"]
[Date "2020.05.26"]
[Round "1"]
[White "Escanor89"]
[Black "AGW2016"]
[Result "1-0"]
[WhiteElo "2557"]
[BlackElo "2206"]
[TimeControl "180+1"]
[EndTime "10:08:37 PDT"]
[Termination "Escanor89 won by checkmate"]

1. c4 {[%clk 0:03:00.9]} 1... g6 {[%clk 0:02:59.5]} 2. Nc3 {[%clk 0:03:00.4]}
2... Bg7 {[%clk 0:02:59.5]} 3. e4 {[%clk 0:03:00.2]} 3... d6 {[%clk 0:02:59.7]}
4. d4 {[%clk 0:03:00.2]} 4... Nf6 {[%clk 0:03:00.4]} 5. Nf3 {[%clk 0:03:00]}
5... O-O {[%clk 0:03:01]} 6. Be2 {[%clk 0:03:00.1]} 6... e5 {[%clk 0:03:01.4]}
7. O-O {[%clk 0:02:59.9]} 7... Nc6 {[%clk 0:03:01.8]} 8. d5 {[%clk 0:02:59.1]}
8... Ne7 {[%clk 0:03:02.2]} 9. Ne1 {[%clk 0:02:59]} 9... Nd7 {[%clk 0:03:02.3]}
10. Be3 {[%clk 0:02:58.8]} 10... f5 {[%clk 0:03:02.8]} 11. f3 {[%clk 0:02:58.8]}
11... f4 {[%clk 0:03:03.5]} 12. Bf2 {[%clk 0:02:59]} 12... g5 {[%clk 0:03:04.2]}
13. Nd3 {[%clk 0:02:56.8]} 13... Nf6 {[%clk 0:02:57.9]} 14. c5 {[%clk
0:02:55.4]} 14... Ng6 {[%clk 0:02:58.3]} 15. Rc1 {[%clk 0:02:52.3]} 15... Rf7
{[%clk 0:02:58.4]} 16. cxd6 {[%clk 0:02:47.7]} 16... cxd6 {[%clk 0:02:57.2]} 17.
Nb5 {[%clk 0:02:45.5]} 17... g4 {[%clk 0:02:20.7]} 18. Kh1 {[%clk 0:02:34.1]}
18... g3 {[%clk 0:02:12.8]} 19. Bxa7 {[%clk 0:02:25.4]} 19... Bd7 {[%clk
0:01:59.4]} 20. Nxd6 {[%clk 0:02:04.8]} 20... Rxa7 {[%clk 0:01:59]} 21. Nxf7
{[%clk 0:02:04.3]} 21... Kxf7 {[%clk 0:01:59.9]} 22. h3 {[%clk 0:01:54.3]} 22...
Bxh3 {[%clk 0:01:46.6]} 23. gxh3 {[%clk 0:01:01.9]} 23... Qd7 {[%clk 0:01:44.9]}
24. Nf2 {[%clk 0:00:53.3]} 24... gxf2 {[%clk 0:01:25.8]} 25. Rxf2 {[%clk
0:00:52.9]} 25... Qxh3+ {[%clk 0:00:59.3]} 26. Rh2 {[%clk 0:00:52.1]} 26... Qd7
{[%clk 0:00:48.8]} 27. d6 {[%clk 0:00:51.6]} 27... b6 {[%clk 0:00:43.6]} 28.
Qb3+ {[%clk 0:00:45.6]} 28... Kf8 {[%clk 0:00:41.9]} 29. Qxb6 {[%clk 0:00:37.4]}
29... Ne8 {[%clk 0:00:39.5]} 30. Bb5 {[%clk 0:00:26]} 30... Rb7 {[%clk
0:00:34.8]} 31. Qxb7 {[%clk 0:00:13.4]} 31... Qxb7 {[%clk 0:00:34.2]} 32. d7
{[%clk 0:00:13.7]} 32... Qxb5 {[%clk 0:00:31.6]} 33. d8=Q {[%clk 0:00:13.6]}
33... Bf6 {[%clk 0:00:22.5]} 34. Qd2 {[%clk 0:00:10.5]} 34... Kg7 {[%clk
0:00:19.3]} 35. b3 {[%clk 0:00:08.8]} 35... Nh4 {[%clk 0:00:16.5]} 36. Rg1+
{[%clk 0:00:06.9]} 36... Kh8 {[%clk 0:00:16]} 37. Qd5 {[%clk 0:00:06.9]} 37...
Qxd5 {[%clk 0:00:15.4]} 38. exd5 {[%clk 0:00:07.2]} 38... Nxf3 {[%clk
0:00:16.3]} 39. Rc1 {[%clk 0:00:06.4]} 39... Nxh2 {[%clk 0:00:16.3]} 40. Rc8
{[%clk 0:00:07]} 40... Kg7 {[%clk 0:00:16.1]} 41. Rxe8 {[%clk 0:00:07.1]} 41...
Ng4 {[%clk 0:00:14.4]} 42. d6 {[%clk 0:00:07.3]} 42... e4 {[%clk 0:00:15]} 43.
d7 {[%clk 0:00:07.4]} 43... e3 {[%clk 0:00:13.3]} 44. Kg2 {[%clk 0:00:07.4]}
44... Ne5 {[%clk 0:00:11.8]} 45. Rxe5 {[%clk 0:00:06.1]} 45... Kf7 {[%clk
0:00:11.2]} 46. Re4 {[%clk 0:00:05.2]} 46... Bd8 {[%clk 0:00:10.1]} 47. Kf3
{[%clk 0:00:05.4]} 47... h6 {[%clk 0:00:08.3]} 48. Rxf4+ {[%clk 0:00:05.2]}
48... Ke7 {[%clk 0:00:08.2]} 49. Rd4 {[%clk 0:00:05.8]} 49... Bb6 {[%clk
0:00:07.7]} 50. Rd3 {[%clk 0:00:06]} 50... Kd8 {[%clk 0:00:07.1]} 51. a4 {[%clk
0:00:06.4]} 51... Ba7 {[%clk 0:00:07.6]} 52. b4 {[%clk 0:00:06.7]} 52... Bb8
{[%clk 0:00:08.2]} 53. a5 {[%clk 0:00:07.1]} 53... Bc7 {[%clk 0:00:09.1]} 54. a6
{[%clk 0:00:06.7]} 54... Bb6 {[%clk 0:00:09.4]} 55. b5 {[%clk 0:00:07.3]} 55...
Ba7 {[%clk 0:00:09.7]} 56. Ke2 {[%clk 0:00:08]} 56... Bb6 {[%clk 0:00:10.2]} 57.
Rd6 {[%clk 0:00:08.4]} 57... Ba7 {[%clk 0:00:10]} 58. b6 {[%clk 0:00:08.8]}
58... Bb8 {[%clk 0:00:10.2]} 59. Rxh6 {[%clk 0:00:08.8]} 59... Kxd7 {[%clk
0:00:10.5]} 60. Rh8 {[%clk 0:00:08.7]} 60... Be5 {[%clk 0:00:09.6]} 61. a7
{[%clk 0:00:08.9]} 61... Bxh8 {[%clk 0:00:09]} 62. a8=Q {[%clk 0:00:08.8]} 62...
Be5 {[%clk 0:00:07.7]} 63. b7 {[%clk 0:00:09.7]} 63... Kc7 {[%clk 0:00:07.7]}
64. b8=Q+ {[%clk 0:00:10.6]} 64... Kd7 {[%clk 0:00:07.4]} 65. Qbb7+ {[%clk
0:00:09.9]} 65... Ke6 {[%clk 0:00:07.2]} 66. Qaa6+ {[%clk 0:00:10.6]} 66... Kf5
{[%clk 0:00:07.8]} 67. Qbb5 {[%clk 0:00:11]} 67... Ke4 {[%clk 0:00:07.9]} 68.
Qxe5+ {[%clk 0:00:11]} 68... Kxe5 {[%clk 0:00:08]} 69. Kxe3 {[%clk 0:00:11.7]}
69... Kf5 {[%clk 0:00:08.9]} 70. Qb5+ {[%clk 0:00:12.2]} 70... Kg4 {[%clk
0:00:09.8]} 71. Qe5 {[%clk 0:00:11.2]} 71... Kh4 {[%clk 0:00:09.1]} 72. Qf6+
{[%clk 0:00:11.2]} 72... Kg4 {[%clk 0:00:09.3]} 73. Qf4+ {[%clk 0:00:11.4]}
73... Kh5 {[%clk 0:00:09.5]} 74. Qg3 {[%clk 0:00:11.6]} 74... Kh6 {[%clk
0:00:09.3]} 75. Kf4 {[%clk 0:00:12.2]} 75... Kh7 {[%clk 0:00:10.2]} 76. Kf5
{[%clk 0:00:12.7]} 76... Kh8 {[%clk 0:00:11.1]} 77. Kf6 {[%clk 0:00:13.2]} 77...
Kh7 {[%clk 0:00:12]} 78. Qg7# {[%clk 0:00:13.3]} 1-0

[Event "*** Titled Tuesday Blitz"]
[Site "Chess.com"]
[Date "2020.05.26"]
[Round "1"]
[White "GM_dmitrij"]
[Black "CyberneticLion"]
[Result "1-0"]
[WhiteElo "2929"]
[BlackElo "2439"]
[TimeControl "180+1"]
[EndTime "10:08:46 PDT"]
[Termination "GM_dmitrij won on time"]

1. e4 {[%clk 0:03:00.4]} 1... e5 {[%clk 0:02:59.2]} 2. Nf3 {[%clk 0:02:59.9]}
2... Nc6 {[%clk 0:02:57.8]} 3. Bc4 {[%clk 0:03:00.4]} 3... Bc5 {[%clk
0:02:56.2]} 4. c3 {[%clk 0:03:00.3]} 4... Nf6 {[%clk 0:02:55.2]} 5. d3 {[%clk
0:03:01.2]} 5... O-O {[%clk 0:02:52.9]} 6. O-O {[%clk 0:03:01.8]} 6... d5 {[%clk
0:02:50.2]} 7. exd5 {[%clk 0:03:02.7]} 7... Nxd5 {[%clk 0:02:50.4]} 8. a4 {[%clk
0:03:02.6]} 8... a6 {[%clk 0:02:46.7]} 9. Nbd2 {[%clk 0:02:58.6]} 9... Bg4
{[%clk 0:02:44.3]} 10. Re1 {[%clk 0:02:56.3]} 10... Re8 {[%clk 0:02:30.1]} 11.
b4 {[%clk 0:02:14.9]} 11... Bf8 {[%clk 0:01:27.2]} 12. Qb3 {[%clk 0:02:11.6]}
12... Be6 {[%clk 0:01:17.2]} 13. a5 {[%clk 0:02:11.6]} 13... Nf4 {[%clk
0:01:13.5]} 14. Ne4 {[%clk 0:01:41.9]} 14... Qxd3 {[%clk 0:00:59.9]} 15. Bxe6
{[%clk 0:01:16]} 15... Nxe6 {[%clk 0:01:00.8]} 16. Bd2 {[%clk 0:01:11.1]} 16...
Rad8 {[%clk 0:01:00.3]} 17. Rad1 {[%clk 0:01:09.6]} 17... Ned4 {[%clk
0:00:46.7]} 18. Nxd4 {[%clk 0:01:03.3]} 18... Nxd4 {[%clk 0:00:45.6]} 19. Qa2
{[%clk 0:01:00.8]} 19... Ne2+ {[%clk 0:00:38.5]} 20. Rxe2 {[%clk 0:00:43.4]}
20... Qxe2 {[%clk 0:00:39.4]} 21. Re1 {[%clk 0:00:44.3]} 21... Qh5 {[%clk
0:00:31.4]} 22. h3 {[%clk 0:00:40.1]} 22... c6 {[%clk 0:00:31]} 23. Bg5 {[%clk
0:00:37.4]} 23... Be7 {[%clk 0:00:29.4]} 24. Be3 {[%clk 0:00:35.4]} 24... Qg6
{[%clk 0:00:28.6]} 25. Bb6 {[%clk 0:00:30.3]} 25... Rd7 {[%clk 0:00:25.5]} 26.
Qc4 {[%clk 0:00:29.8]} 26... Qe6 {[%clk 0:00:25.2]} 27. Qxe6 {[%clk 0:00:28.9]}
27... fxe6 {[%clk 0:00:26.1]} 28. Kf1 {[%clk 0:00:28.2]} 28... Bd8 {[%clk
0:00:23.1]} 29. Nc5 {[%clk 0:00:19.4]} 29... Rd5 {[%clk 0:00:21.3]} 30. Re3
{[%clk 0:00:10.8]} 30... Bxb6 {[%clk 0:00:20.6]} 31. axb6 {[%clk 0:00:11.7]}
31... Kf7 {[%clk 0:00:18.1]} 32. Ke2 {[%clk 0:00:09.8]} 32... Ke7 {[%clk
0:00:16.4]} 33. Rg3 {[%clk 0:00:09.7]} 33... g6 {[%clk 0:00:16.2]} 34. Re3
{[%clk 0:00:09.3]} 34... Rb8 {[%clk 0:00:14.8]} 35. h4 {[%clk 0:00:08.4]} 35...
Kd6 {[%clk 0:00:15.1]} 36. Ne4+ {[%clk 0:00:07.7]} 36... Ke7 {[%clk 0:00:14.2]}
37. h5 {[%clk 0:00:08.6]} 37... a5 {[%clk 0:00:10.1]} 38. bxa5 {[%clk
0:00:06.6]} 38... Rxa5 {[%clk 0:00:09.7]} 39. Rh3 {[%clk 0:00:07.5]} 39... g5
{[%clk 0:00:08.2]} 40. h6 {[%clk 0:00:06.2]} 40... Rb5 {[%clk 0:00:07.8]} 41.
Nxg5 {[%clk 0:00:05.5]} 41... Rh8 {[%clk 0:00:07.5]} 42. Rf3 {[%clk 0:00:04.9]}
42... Rxb6 {[%clk 0:00:07.8]} 43. Rf7+ {[%clk 0:00:05.1]} 43... Kd6 {[%clk
0:00:08.1]} 44. Nxh7 {[%clk 0:00:04]} 44... Rb2+ {[%clk 0:00:08.6]} 45. Ke3
{[%clk 0:00:04.4]} 45... b5 {[%clk 0:00:07.6]} 46. g4 {[%clk 0:00:04.8]} 46...
Rb3 {[%clk 0:00:06.8]} 47. Kd2 {[%clk 0:00:05.2]} 47... e4 {[%clk 0:00:06.9]}
48. g5 {[%clk 0:00:05.2]} 48... b4 {[%clk 0:00:05.2]} 49. cxb4 {[%clk
0:00:05.1]} 49... Ra8 {[%clk 0:00:04.2]} 50. Ke2 {[%clk 0:00:04.8]} 50... Ra2+
{[%clk 0:00:03.7]} 51. Kf1 {[%clk 0:00:04.9]} 51... Rh3 {[%clk 0:00:04.2]} 52.
Nf6 {[%clk 0:00:03.4]} 52... e3 {[%clk 0:00:04.2]} 53. Ne4+ {[%clk 0:00:03.5]}
53... Ke5 {[%clk 0:00:03.9]} 54. g6 {[%clk 0:00:03.9]} 54... exf2 {[%clk
0:00:03.7]} 55. Nxf2 {[%clk 0:00:03.5]} 55... Rxh6 {[%clk 0:00:03]} 56. g7
{[%clk 0:00:04.4]} 56... Rg6 {[%clk 0:00:03.4]} 57. Ke1 {[%clk 0:00:03.9]} 57...
Rxf2 {[%clk 0:00:03]} 58. Kxf2 {[%clk 0:00:03.8]} 58... Kd4 {[%clk 0:00:03.9]}
59. Rc7 {[%clk 0:00:03.5]} 59... Kc4 {[%clk 0:00:04.2]} 60. Rxc6+ {[%clk
0:00:03.9]} 60... Kxb4 {[%clk 0:00:04.3]} 61. Rc7 {[%clk 0:00:04.8]} 61... e5
{[%clk 0:00:03.5]} 62. Kf3 {[%clk 0:00:05]} 62... Kb5 {[%clk 0:00:03.5]} 63. Ke4
{[%clk 0:00:05.5]} 63... Kb6 {[%clk 0:00:04]} 64. Rf7 {[%clk 0:00:06.1]} 64...
Rg5 {[%clk 0:00:02.7]} 65. Kd5 {[%clk 0:00:05.8]} 65... Kb5 {[%clk 0:00:01.6]}
66. Rb7+ {[%clk 0:00:05.4]} 66... Ka6 {[%clk 0:00:02]} 67. Rf7 {[%clk
0:00:06.3]} 67... Kb6 {[%clk 0:00:02.9]} 68. Ke6 {[%clk 0:00:07]} 68... e4
{[%clk 0:00:03]} 69. Kf6 {[%clk 0:00:07.6]} 69... Rg3 {[%clk 0:00:02.9]} 70. Re7
{[%clk 0:00:07.8]} 70... e3 {[%clk 0:00:03.8]} 71. Rxe3 {[%clk 0:00:07.8]} 1-0